[Event "Titled Tuesday Blitz January 10 Late 2023"]
[White "Ward, Ieuan C"]
[Black "Solon, Nathan"]
[WhiteFideId "406627"]
[BlackFideId "2017229"]
[WhiteElo "2028"]
[BlackElo "2306"]
[Result "0-1"]
[Round "01"]
[TimeControl "180+2"]
[Date "2023.01.10"]
[WhiteClock "0:00:20"]
[BlackClock "0:01:24"]

1. d4 {[%clk 0:00:00]}  Nf6 {[%clk 0:00:00]} 2. Nf3 {[%clk 0:03:00]}  c5 {[%clk 0:02:59]} 3. d5 {[%clk 0:03:00]}  b5 {[%clk 0:02:58]} 4. a4 {[%clk 0:03:00]}  b4 {[%clk 0:02:58]} 5. c4 {[%clk 0:02:55]}  d6 {[%clk 0:02:55]} 6. b3 {[%clk 0:02:54]}  g6 {[%clk 0:02:54]} 7. Bb2 {[%clk 0:02:52]}  Bg7 {[%clk 0:02:54]} 8. g3 {[%clk 0:02:52]}  O-O {[%clk 0:02:54]} 9. Nbd2 {[%clk 0:02:50]}  e5 {[%clk 0:02:54]} 10. dxe6 {[%clk 0:02:47]}  fxe6 {[%clk 0:02:53]} 11. Bg2 {[%clk 0:02:45]}  Bb7 {[%clk 0:02:53]} 12. Qc2 {[%clk 0:02:45]}  Nc6 {[%clk 0:02:53]} 13. O-O {[%clk 0:02:43]}  Qe7 {[%clk 0:02:52]} 14. e4 {[%clk 0:02:42]}  e5 {[%clk 0:02:48]} 15. h3 {[%clk 0:02:30]}  Rae8 {[%clk 0:02:44]} 16. Rfe1 {[%clk 0:02:20]}  Kh8 {[%clk 0:02:41]} 17. Nf1 {[%clk 0:02:19]}  Nd4 {[%clk 0:02:36]} 18. Qd3 {[%clk 0:02:17]}  Nd7 {[%clk 0:02:32]} 19. N3h2 {[%clk 0:02:04]}  Qf7 {[%clk 0:02:27]} 20. f3 {[%clk 0:01:40]}  Nf6 {[%clk 0:02:19]} 21. Bxd4 {[%clk 0:01:26]}  exd4 {[%clk 0:02:10]} 22. Ra2 {[%clk 0:01:21]}  Nh5 {[%clk 0:02:05]} 23. f4 {[%clk 0:01:17]}  g5 {[%clk 0:02:04]} 24. fxg5 {[%clk 0:01:06]}  Be5 {[%clk 0:01:52]} 25. Ng4 {[%clk 0:01:01]}  Qg7 {[%clk 0:01:52]} 26. Nh6 {[%clk 0:00:56]}  Qxg5 {[%clk 0:01:49]} 27. Nf5 {[%clk 0:00:32]}  Rg8 {[%clk 0:01:43]} 28. g4 {[%clk 0:00:21]}  Nf4 {[%clk 0:01:26]} 29. Qf3 {[%clk 0:00:21]}  h5 {[%clk 0:01:25]} 30. N1e3 {[%clk 0:00:20]}  dxe3 {[%clk 0:01:24]} 0-1


[Site "https://www.chess.com"]

[Event "Titled Tuesday Blitz January 10 Late 2023"]
[White "Vaglio Munoz, Jaime"]
[Black "Vlassov, Nikolai"]
[WhiteFideId "6500145"]
[BlackFideId "4103360"]
[WhiteElo "2174"]
[BlackElo "2283"]
[Result "0-1"]
[Round "01"]
[TimeControl "180+2"]
[Date "2023.01.10"]
[WhiteClock "0:01:22"]
[BlackClock "0:00:40"]

1. d4 {[%clk 0:00:00]}  Nf6 {[%clk 0:00:00]} 2. c4 {[%clk 0:02:58]}  Nc6 {[%clk 0:02:57]} 3. d5 {[%clk 0:02:58]}  Ne5 {[%clk 0:02:57]} 4. g3 {[%clk 0:02:56]}  Nxc4 {[%clk 0:02:56]} 5. Bg2 {[%clk 0:02:56]}  e6 {[%clk 0:02:56]} 6. Nc3 {[%clk 0:02:56]}  exd5 {[%clk 0:02:54]} 7. Nf3 {[%clk 0:02:54]}  Bb4 {[%clk 0:02:48]} 8. O-O {[%clk 0:02:50]}  Bxc3 {[%clk 0:02:45]} 9. bxc3 {[%clk 0:02:50]}  c6 {[%clk 0:02:45]} 10. Nd4 {[%clk 0:02:50]}  O-O {[%clk 0:02:39]} 11. Re1 {[%clk 0:02:49]}  d6 {[%clk 0:02:38]} 12. Bg5 {[%clk 0:02:47]}  h6 {[%clk 0:02:37]} 13. Bxf6 {[%clk 0:02:47]}  Qxf6 {[%clk 0:02:37]} 14. e4 {[%clk 0:02:47]}  dxe4 {[%clk 0:02:36]} 15. Bxe4 {[%clk 0:02:47]}  d5 {[%clk 0:02:36]} 16. Bg2 {[%clk 0:02:45]}  Bd7 {[%clk 0:02:36]} 17. Rb1 {[%clk 0:02:44]}  b6 {[%clk 0:02:35]} 18. a4 {[%clk 0:02:44]}  Rfe8 {[%clk 0:02:35]} 19. Rf1 {[%clk 0:02:43]}  Re7 {[%clk 0:02:34]} 20. h4 {[%clk 0:02:21]}  Rae8 {[%clk 0:02:30]} 21. Kh2 {[%clk 0:02:20]}  Ne5 {[%clk 0:02:30]} 22. f3 {[%clk 0:02:20]}  c5 {[%clk 0:02:24]} 23. Nb5 {[%clk 0:02:17]}  Nc4 {[%clk 0:02:18]} 24. Nc7 {[%clk 0:02:16]}  Ne3 {[%clk 0:02:13]} 25. Nxd5 {[%clk 0:02:13]}  Nxd5 {[%clk 0:02:11]} 26. Qxd5 {[%clk 0:02:11]}  Qxc3 {[%clk 0:02:07]} 27. a5 {[%clk 0:02:10]}  Be6 {[%clk 0:02:05]} 28. Qd6 {[%clk 0:02:07]}  Qxa5 {[%clk 0:01:53]} 29. f4 {[%clk 0:02:07]}  Rd7 {[%clk 0:01:50]} 30. Qc6 {[%clk 0:02:04]}  Red8 {[%clk 0:01:46]} 31. Ra1 {[%clk 0:02:03]}  Qc3 {[%clk 0:01:42]} 32. Rfc1 {[%clk 0:02:01]}  Qb2 {[%clk 0:01:38]} 33. Rab1 {[%clk 0:02:00]}  Qf6 {[%clk 0:01:33]} 34. Ra1 {[%clk 0:01:58]}  Rd2 {[%clk 0:01:23]} 35. Rxa7 {[%clk 0:01:54]}  Qb2 {[%clk 0:01:19]} 36. Rg1 {[%clk 0:01:34]}  Bd5 {[%clk 0:00:55]} 37. Qc7 {[%clk 0:01:32]}  Rxg2+ {[%clk 0:00:55]} 38. Kh3 {[%clk 0:01:27]}  Be6+ {[%clk 0:00:45]} 39. f5 {[%clk 0:01:26]}  Bxf5+ {[%clk 0:00:40]} 40. g4 {[%clk 0:01:22]}  Rd3+ {[%clk 0:00:40]} 0-1


[Site "https://www.chess.com"]

[Event "Titled Tuesday Blitz January 10 Late 2023"]
[White "Kim, Yoon-Young"]
[Black "rikchessmx"]
[WhiteFideId "30908779"]
[WhiteElo "2304"]
[BlackElo "2330"]
[Result "1/2-1/2"]
[Round "01"]
[TimeControl "180+2"]
[Date "2023.01.10"]
[WhiteClock "0:00:22"]
[BlackClock "0:00:39"]

1. d4 {[%clk 0:00:00]}  d5 {[%clk 0:00:00]} 2. c4 {[%clk 0:02:58]}  e6 {[%clk 0:03:00]} 3. Nf3 {[%clk 0:02:58]}  c6 {[%clk 0:03:00]} 4. Nbd2 {[%clk 0:02:58]}  Nf6 {[%clk 0:03:00]} 5. g3 {[%clk 0:02:56]}  Nbd7 {[%clk 0:03:00]} 6. Bg2 {[%clk 0:02:56]}  Bd6 {[%clk 0:03:00]} 7. O-O {[%clk 0:02:56]}  O-O {[%clk 0:02:59]} 8. Qc2 {[%clk 0:02:56]}  e5 {[%clk 0:02:59]} 9. cxd5 {[%clk 0:02:52]}  Nxd5 {[%clk 0:02:55]} 10. Nc4 {[%clk 0:02:47]}  Nb4 {[%clk 0:02:54]} 11. Qb3 {[%clk 0:02:46]}  Be7 {[%clk 0:02:49]} 12. dxe5 {[%clk 0:02:43]}  a5 {[%clk 0:02:47]} 13. Rd1 {[%clk 0:02:35]}  Qc7 {[%clk 0:02:45]} 14. Bf4 {[%clk 0:02:33]}  Nc5 {[%clk 0:02:44]} 15. Qe3 {[%clk 0:02:30]}  Ne6 {[%clk 0:02:44]} 16. Nb6 {[%clk 0:02:18]}  Ra6 {[%clk 0:02:43]} 17. Nxc8 {[%clk 0:02:13]}  Rxc8 {[%clk 0:02:36]} 18. Qc1 {[%clk 0:02:13]}  Nd5 {[%clk 0:02:36]} 19. Bd2 {[%clk 0:02:07]}  Raa8 {[%clk 0:02:33]} 20. a3 {[%clk 0:02:05]}  a4 {[%clk 0:02:28]} 21. e4 {[%clk 0:01:52]}  Nb6 {[%clk 0:02:26]} 22. Be3 {[%clk 0:01:49]}  Nd7 {[%clk 0:02:24]} 23. Qc3 {[%clk 0:01:49]}  Bc5 {[%clk 0:02:21]} 24. Rxd7 {[%clk 0:01:49]}  Qxd7 {[%clk 0:02:14]} 25. Bxc5 {[%clk 0:01:44]}  Nxc5 {[%clk 0:02:12]} 26. Qxc5 {[%clk 0:01:43]}  Qd3 {[%clk 0:02:12]} 27. e6 {[%clk 0:01:44]}  fxe6 {[%clk 0:02:11]} 28. Ne5 {[%clk 0:01:35]}  Qb3 {[%clk 0:02:02]} 29. Qe7 {[%clk 0:01:35]}  Rf8 {[%clk 0:01:56]} 30. Qb4 {[%clk 0:01:21]}  Qc2 {[%clk 0:01:53]} 31. Nf3 {[%clk 0:01:17]}  b5 {[%clk 0:01:46]} 32. Qc3 {[%clk 0:01:05]}  Qxc3 {[%clk 0:01:43]} 33. bxc3 {[%clk 0:01:05]}  Rac8 {[%clk 0:01:42]} 34. Rb1 {[%clk 0:01:05]}  Rfd8 {[%clk 0:01:35]} 35. Nd4 {[%clk 0:01:02]}  e5 {[%clk 0:01:31]} 36. Nf5 {[%clk 0:00:59]}  Rc7 {[%clk 0:01:31]} 37. Bf1 {[%clk 0:00:58]}  Rd2 {[%clk 0:01:27]} 38. c4 {[%clk 0:00:56]}  Ra2 {[%clk 0:01:22]} 39. cxb5 {[%clk 0:00:57]}  cxb5 {[%clk 0:01:13]} 40. Rxb5 {[%clk 0:00:57]}  Rxa3 {[%clk 0:01:13]} 41. Rxe5 {[%clk 0:00:51]}  Ra1 {[%clk 0:01:13]} 42. Kg2 {[%clk 0:00:47]}  g6 {[%clk 0:01:10]} 43. Ne3 {[%clk 0:00:46]}  a3 {[%clk 0:01:09]} 44. Bc4+ {[%clk 0:00:43]}  Kg7 {[%clk 0:01:08]} 45. Ra5 {[%clk 0:00:43]}  h5 {[%clk 0:01:07]} 46. h4 {[%clk 0:00:43]}  Rc1 {[%clk 0:01:05]} 47. Rxa3 {[%clk 0:00:43]}  R1xc4 {[%clk 0:01:02]} 48. Nxc4 {[%clk 0:00:38]}  Rxc4 {[%clk 0:01:01]} 49. Kf3 {[%clk 0:00:39]}  Kf6 {[%clk 0:01:02]} 50. Kf4 {[%clk 0:00:38]}  Rc2 {[%clk 0:01:01]} 51. f3 {[%clk 0:00:37]}  Rf2 {[%clk 0:01:01]} 52. Ra6+ {[%clk 0:00:38]}  Kg7 {[%clk 0:00:59]} 53. Kg5 {[%clk 0:00:38]}  Rxf3 {[%clk 0:00:59]} 54. Rxg6+ {[%clk 0:00:36]}  Kf7 {[%clk 0:00:58]} 55. Kxh5 {[%clk 0:00:37]}  Re3 {[%clk 0:00:58]} 56. Rg4 {[%clk 0:00:37]}  Kf6 {[%clk 0:00:56]} 57. Rf4+ {[%clk 0:00:35]}  Ke5 {[%clk 0:00:56]} 58. Kg4 {[%clk 0:00:36]}  Ra3 {[%clk 0:00:56]} 59. h5 {[%clk 0:00:37]}  Ra6 {[%clk 0:00:54]} 60. Kg5 {[%clk 0:00:37]}  Ra3 {[%clk 0:00:54]} 61. g4 {[%clk 0:00:36]}  Ra8 {[%clk 0:00:54]} 62. Rf5+ {[%clk 0:00:35]}  Kxe4 {[%clk 0:00:54]} 63. Rf6 {[%clk 0:00:34]}  Rg8+ {[%clk 0:00:54]} 64. Rg6 {[%clk 0:00:34]}  Re8 {[%clk 0:00:55]} 65. h6 {[%clk 0:00:35]}  Re5+ {[%clk 0:00:55]} 66. Kh4 {[%clk 0:00:36]}  Kf4 {[%clk 0:00:54]} 67. h7 {[%clk 0:00:36]}  Re1 {[%clk 0:00:54]} 68. Rf6+ {[%clk 0:00:35]}  Ke5 {[%clk 0:00:54]} 69. h8=Q {[%clk 0:00:35]}  Rh1+ {[%clk 0:00:54]} 70. Kg5 {[%clk 0:00:36]}  Rxh8 {[%clk 0:00:54]} 71. Rf2 {[%clk 0:00:36]}  Rg8+ {[%clk 0:00:55]} 72. Kh5 {[%clk 0:00:36]}  Rh8+ {[%clk 0:00:55]} 73. Kg5 {[%clk 0:00:37]}  Rg8+ {[%clk 0:00:56]} 74. Kh4 {[%clk 0:00:35]}  Rh8+ {[%clk 0:00:56]} 75. Kg3 {[%clk 0:00:35]}  Rg8 {[%clk 0:00:56]} 76. Rf1 {[%clk 0:00:36]}  Ke4 {[%clk 0:00:54]} 77. Rf7 {[%clk 0:00:36]}  Ke5 {[%clk 0:00:53]} 78. Kh4 {[%clk 0:00:33]}  Rh8+ {[%clk 0:00:52]} 79. Kg5 {[%clk 0:00:33]}  Rg8+ {[%clk 0:00:51]} 80. Kh5 {[%clk 0:00:34]}  Rh8+ {[%clk 0:00:51]} 81. Kg6 {[%clk 0:00:34]}  Rg8+ {[%clk 0:00:51]} 82. Kh5 {[%clk 0:00:34]}  Rh8+ {[%clk 0:00:51]} 83. Kg5 {[%clk 0:00:31]}  Rg8+ {[%clk 0:00:51]} 84. Kh4 {[%clk 0:00:32]}  Rh8+ {[%clk 0:00:51]} 85. Kg3 {[%clk 0:00:32]}  Rg8 {[%clk 0:00:50]} 86. Rf5+ {[%clk 0:00:33]}  Ke6 {[%clk 0:00:50]} 87. Kf4 {[%clk 0:00:33]}  Ra8 {[%clk 0:00:48]} 88. Rb5 {[%clk 0:00:34]}  Rf8+ {[%clk 0:00:46]} 89. Kg3 {[%clk 0:00:33]}  Rg8 {[%clk 0:00:45]} 90. g5 {[%clk 0:00:30]}  Kf7 {[%clk 0:00:44]} 91. Kg4 {[%clk 0:00:30]}  Kg6 {[%clk 0:00:41]} 92. Rb6+ {[%clk 0:00:28]}  Kg7 {[%clk 0:00:41]} 93. Kf5 {[%clk 0:00:28]}  Rf8+ {[%clk 0:00:41]} 94. Kg4 {[%clk 0:00:23]}  Rf1 {[%clk 0:00:40]} 95. Rb7+ {[%clk 0:00:24]}  Kg6 {[%clk 0:00:40]} 96. Rb6+ {[%clk 0:00:22]}  Kg7 {[%clk 0:00:39]} 97. Rb4 {[%clk 0:00:22]}  Kg6 {[%clk 0:00:39]} 98. Rb6+ {[%clk 0:00:22]}  Kg7 {[%clk 0:00:39]} 1/2-1/2


[Site "https://www.chess.com"]

[Event "Titled Tuesday Blitz January 10 Late 2023"]
[White "Jenkins, Drake"]
[Black "Rostomyan, Mikayel"]
[WhiteFideId "2022397"]
[BlackFideId "13313754"]
[WhiteElo "2130"]
[BlackElo "2222"]
[Result "0-1"]
[Round "01"]
[TimeControl "180+2"]
[Date "2023.01.10"]
[WhiteClock "0:00:07"]
[BlackClock "0:00:19"]

1. Nf3 {[%clk 0:00:00]}  d5 {[%clk 0:00:00]} 2. g3 {[%clk 0:03:00]}  Nc6 {[%clk 0:02:58]} 3. d4 {[%clk 0:02:58]}  Bf5 {[%clk 0:02:58]} 4. Bg2 {[%clk 0:02:58]}  Qd7 {[%clk 0:02:57]} 5. c4 {[%clk 0:02:57]}  dxc4 {[%clk 0:02:56]} 6. Na3 {[%clk 0:02:55]}  e6 {[%clk 0:02:53]} 7. Nxc4 {[%clk 0:02:45]}  O-O-O {[%clk 0:02:35]} 8. e3 {[%clk 0:02:39]}  f6 {[%clk 0:02:27]} 9. O-O {[%clk 0:02:07]}  g5 {[%clk 0:02:10]} 10. Qb3 {[%clk 0:02:06]}  h5 {[%clk 0:02:09]} 11. Bd2 {[%clk 0:01:32]}  h4 {[%clk 0:02:04]} 12. Rfc1 {[%clk 0:01:17]}  hxg3 {[%clk 0:02:02]} 13. fxg3 {[%clk 0:01:13]}  Nge7 {[%clk 0:01:54]} 14. Na5 {[%clk 0:01:01]}  Nxa5 {[%clk 0:01:37]} 15. Bxa5 {[%clk 0:01:00]}  Nc6 {[%clk 0:01:26]} 16. Rxc6 {[%clk 0:01:00]}  Qxc6 {[%clk 0:01:27]} 17. Nxg5 {[%clk 0:00:31]}  Qxg2+ {[%clk 0:01:25]} 18. Kxg2 {[%clk 0:00:31]}  fxg5 {[%clk 0:00:38]} 19. Kg1 {[%clk 0:00:31]}  Bd6 {[%clk 0:00:39]} 20. e4 {[%clk 0:00:10]}  Bh3 {[%clk 0:00:35]} 21. e5 {[%clk 0:00:10]}  Be7 {[%clk 0:00:26]} 22. Rc1 {[%clk 0:00:09]}  b6 {[%clk 0:00:23]} 23. Bc3 {[%clk 0:00:08]}  Rhf8 {[%clk 0:00:21]} 24. Qa4 {[%clk 0:00:07]}  Kb8 {[%clk 0:00:19]} 0-1


[Site "https://www.chess.com"]

[Event "Titled Tuesday Blitz January 10 Late 2023"]
[White "Tologon tegin, Semetei"]
[Black "Pinero Rodriguez, Carlos Jose"]
[WhiteFideId "13800574"]
[BlackFideId "3901726"]
[WhiteElo "2372"]
[BlackElo "2246"]
[Result "1-0"]
[Round "01"]
[TimeControl "180+2"]
[Date "2023.01.10"]
[WhiteClock "0:00:25"]
[BlackClock "0:00:05"]

1. Nf3 {[%clk 0:00:00]}  d5 {[%clk 0:00:00]} 2. g3 {[%clk 0:02:47]}  e6 {[%clk 0:02:55]} 3. Bg2 {[%clk 0:02:46]}  Nf6 {[%clk 0:02:54]} 4. O-O {[%clk 0:02:46]}  b6 {[%clk 0:02:55]} 5. b3 {[%clk 0:02:45]}  Bb7 {[%clk 0:02:55]} 6. Bb2 {[%clk 0:02:42]}  Be7 {[%clk 0:02:55]} 7. c4 {[%clk 0:02:39]}  dxc4 {[%clk 0:02:55]} 8. bxc4 {[%clk 0:02:36]}  O-O {[%clk 0:02:54]} 9. d3 {[%clk 0:02:35]}  c5 {[%clk 0:02:53]} 10. Nc3 {[%clk 0:02:33]}  Nbd7 {[%clk 0:02:51]} 11. e3 {[%clk 0:02:32]}  Ng4 {[%clk 0:02:42]} 12. h3 {[%clk 0:02:31]}  Nge5 {[%clk 0:02:38]} 13. Nxe5 {[%clk 0:02:04]}  Bxg2 {[%clk 0:02:25]} 14. Nxf7 {[%clk 0:02:02]}  Rxf7 {[%clk 0:02:25]} 15. Kxg2 {[%clk 0:02:02]}  Ne5 {[%clk 0:01:56]} 16. Nd5 {[%clk 0:02:00]}  exd5 {[%clk 0:01:56]} 17. Bxe5 {[%clk 0:01:47]}  dxc4 {[%clk 0:01:37]} 18. dxc4 {[%clk 0:01:44]}  Bf6 {[%clk 0:01:34]} 19. Bxf6 {[%clk 0:01:44]}  Qxf6 {[%clk 0:01:22]} 20. Qg4 {[%clk 0:01:41]}  Raf8 {[%clk 0:01:19]} 21. Rae1 {[%clk 0:01:39]}  Qb2 {[%clk 0:01:11]} 22. Re2 {[%clk 0:01:24]}  Qe5 {[%clk 0:00:36]} 23. Rd1 {[%clk 0:01:23]}  h5 {[%clk 0:00:35]} 24. Qh4 {[%clk 0:01:20]}  Qf5 {[%clk 0:00:23]} 25. Rdd2 {[%clk 0:01:20]}  Qf3+ {[%clk 0:00:20]} 26. Kg1 {[%clk 0:01:04]}  Qf5 {[%clk 0:00:19]} 27. Rd5 {[%clk 0:01:02]}  Qb1+ {[%clk 0:00:16]} 28. Kg2 {[%clk 0:00:52]}  g6 {[%clk 0:00:14]} 29. Rd8 {[%clk 0:00:51]}  Rxd8 {[%clk 0:00:13]} 30. Qxd8+ {[%clk 0:00:43]}  Kg7 {[%clk 0:00:08]} 31. Qd5 {[%clk 0:00:43]}  Qf5 {[%clk 0:00:09]} 32. Rd2 {[%clk 0:00:41]}  Qxd5+ {[%clk 0:00:07]} 33. Rxd5 {[%clk 0:00:30]}  Rc7 {[%clk 0:00:05]} 34. f4 {[%clk 0:00:30]}  Kf6 {[%clk 0:00:04]} 35. e4 {[%clk 0:00:29]}  Ke6 {[%clk 0:00:04]} 36. Kf3 {[%clk 0:00:28]}  a6 {[%clk 0:00:04]} 37. a4 {[%clk 0:00:28]}  Rc8 {[%clk 0:00:05]} 38. e5 {[%clk 0:00:27]}  Rc7 {[%clk 0:00:02]} 39. Rd6+ {[%clk 0:00:25]}  Ke7 {[%clk 0:00:02]} 40. Rxb6 {[%clk 0:00:24]}  Ra7 {[%clk 0:00:03]} 41. Rxg6 {[%clk 0:00:25]}  Kf7 {[%clk 0:00:03]} 42. Rc6 {[%clk 0:00:24]}  Kf8 {[%clk 0:00:01]} 43. Rxc5 {[%clk 0:00:24]}  a5 {[%clk 0:00:02]} 44. g4 {[%clk 0:00:24]}  Kf7 {[%clk 0:00:02]} 45. gxh5 {[%clk 0:00:24]}  Ke7 {[%clk 0:00:03]} 46. Ke4 {[%clk 0:00:24]}  Rb7 {[%clk 0:00:04]} 47. Rb5 {[%clk 0:00:24]}  Rc7 {[%clk 0:00:05]} 48. c5 {[%clk 0:00:24]}  Ra7 {[%clk 0:00:05]} 49. f5 {[%clk 0:00:24]}  Kd8 {[%clk 0:00:05]} 50. h6 {[%clk 0:00:25]}  Kc8 {[%clk 0:00:05]} 51. e6 {[%clk 0:00:25]}  Rh7 {[%clk 0:00:05]} 52. f6 {[%clk 0:00:25]} 1-0


[Site "https://www.chess.com"]

[Event "Titled Tuesday Blitz January 10 Late 2023"]
[White "Muhammad, Shahzeb"]
[Black "Hamley, Ryan"]
[WhiteFideId "7804806"]
[BlackFideId "30959497"]
[WhiteElo "1853"]
[BlackElo "2092"]
[Result "0-1"]
[Round "01"]
[TimeControl "180+2"]
[Date "2023.01.10"]
[WhiteClock "0:00:07"]
[BlackClock "0:00:19"]

1. e4 {[%clk 0:00:00]}  d6 {[%clk 0:00:00]} 2. d4 {[%clk 0:02:56]}  Nf6 {[%clk 0:02:58]} 3. Nc3 {[%clk 0:02:55]}  c6 {[%clk 0:02:59]} 4. Bg5 {[%clk 0:02:55]}  Nbd7 {[%clk 0:02:59]} 5. Qd2 {[%clk 0:02:55]}  e5 {[%clk 0:02:59]} 6. Nge2 {[%clk 0:02:55]}  Be7 {[%clk 0:02:58]} 7. g3 {[%clk 0:02:52]}  b5 {[%clk 0:02:58]} 8. a3 {[%clk 0:02:51]}  Qc7 {[%clk 0:02:57]} 9. Bg2 {[%clk 0:02:50]}  O-O {[%clk 0:02:53]} 10. O-O {[%clk 0:02:49]}  a5 {[%clk 0:02:51]} 11. Rad1 {[%clk 0:02:49]}  b4 {[%clk 0:02:52]} 12. Nb1 {[%clk 0:02:46]}  c5 {[%clk 0:02:51]} 13. d5 {[%clk 0:02:44]}  Ba6 {[%clk 0:02:45]} 14. h3 {[%clk 0:02:40]}  Nxe4 {[%clk 0:02:44]} 15. Bxe4 {[%clk 0:02:31]}  Bxg5 {[%clk 0:02:29]} 16. f4 {[%clk 0:02:26]}  exf4 {[%clk 0:02:29]} 17. gxf4 {[%clk 0:01:58]}  Bh6 {[%clk 0:02:29]} 18. Ng3 {[%clk 0:01:56]}  Nf6 {[%clk 0:02:22]} 19. Bd3 {[%clk 0:01:53]}  c4 {[%clk 0:02:21]} 20. Be2 {[%clk 0:01:40]}  g6 {[%clk 0:02:21]} 21. axb4 {[%clk 0:01:32]}  Qb6+ {[%clk 0:02:15]} 22. Qd4 {[%clk 0:01:30]}  Qxd4+ {[%clk 0:01:53]} 23. Rxd4 {[%clk 0:01:29]}  axb4 {[%clk 0:01:52]} 24. Bxc4 {[%clk 0:01:28]}  Bxc4 {[%clk 0:01:53]} 25. Rxc4 {[%clk 0:01:26]}  Nxd5 {[%clk 0:01:53]} 26. Rd4 {[%clk 0:01:27]}  Ra5 {[%clk 0:01:54]} 27. c4 {[%clk 0:01:24]}  bxc3 {[%clk 0:01:42]} 28. Nxc3 {[%clk 0:00:59]}  Nxc3 {[%clk 0:01:37]} 29. bxc3 {[%clk 0:00:58]}  Bg7 {[%clk 0:01:29]} 30. Rxd6 {[%clk 0:00:59]}  Bxc3 {[%clk 0:01:29]} 31. f5 {[%clk 0:00:56]}  Be5 {[%clk 0:01:30]} 32. Rd3 {[%clk 0:00:52]}  g5 {[%clk 0:01:29]} 33. f6 {[%clk 0:00:51]}  h6 {[%clk 0:01:23]} 34. Rf5 {[%clk 0:00:40]}  Kh7 {[%clk 0:01:11]} 35. Re3 {[%clk 0:00:34]}  Bd4 {[%clk 0:00:53]} 36. Rxa5 {[%clk 0:00:14]}  Bxe3+ {[%clk 0:00:51]} 37. Kg2 {[%clk 0:00:13]}  Kg6 {[%clk 0:00:52]} 38. Ra6 {[%clk 0:00:14]}  Bd4 {[%clk 0:00:53]} 39. Ne4 {[%clk 0:00:14]}  Re8 {[%clk 0:00:52]} 40. Kf3 {[%clk 0:00:13]}  Re5 {[%clk 0:00:52]} 41. Rd6 {[%clk 0:00:13]}  Rf5+ {[%clk 0:00:50]} 42. Kg2 {[%clk 0:00:12]}  Be5 {[%clk 0:00:49]} 43. Rc6 {[%clk 0:00:12]}  Bf4 {[%clk 0:00:48]} 44. h4 {[%clk 0:00:12]}  g4 {[%clk 0:00:48]} 45. Rc8 {[%clk 0:00:11]}  Re5 {[%clk 0:00:44]} 46. Rg8+ {[%clk 0:00:11]}  Kf5 {[%clk 0:00:40]} 47. Nd6+ {[%clk 0:00:10]}  Ke6 {[%clk 0:00:41]} 48. Ne8 {[%clk 0:00:10]}  h5 {[%clk 0:00:37]} 49. Rf8 {[%clk 0:00:09]}  Bh6 {[%clk 0:00:34]} 50. Rh8 {[%clk 0:00:08]}  Bf4 {[%clk 0:00:24]} 51. Ng7+ {[%clk 0:00:07]}  Kxf6 {[%clk 0:00:18]} 52. Nxh5+ {[%clk 0:00:06]}  Kf5 {[%clk 0:00:14]} 53. Nxf4 {[%clk 0:00:07]}  Kxf4 {[%clk 0:00:14]} 54. Rg8 {[%clk 0:00:07]}  Rh5 {[%clk 0:00:15]} 55. Rg7 {[%clk 0:00:07]}  f5 {[%clk 0:00:14]} 56. Rc7 {[%clk 0:00:07]}  Rxh4 {[%clk 0:00:14]} 57. Rc4+ {[%clk 0:00:06]}  Kg5 {[%clk 0:00:15]} 58. Kg3 {[%clk 0:00:07]}  Rh8 {[%clk 0:00:15]} 59. Rc6 {[%clk 0:00:08]}  Rh3+ {[%clk 0:00:16]} 60. Kg2 {[%clk 0:00:07]}  Ra3 {[%clk 0:00:16]} 61. Rc7 {[%clk 0:00:07]}  f4 {[%clk 0:00:17]} 62. Rc5+ {[%clk 0:00:07]}  Kh4 {[%clk 0:00:16]} 63. Rf5 {[%clk 0:00:07]}  Ra2+ {[%clk 0:00:17]} 64. Kf1 {[%clk 0:00:07]}  f3 {[%clk 0:00:17]} 65. Rf4 {[%clk 0:00:07]}  Kg3 {[%clk 0:00:18]} 66. Re4 {[%clk 0:00:07]}  Ra1+ {[%clk 0:00:18]} 67. Re1 {[%clk 0:00:06]}  Rxe1+ {[%clk 0:00:18]} 68. Kxe1 {[%clk 0:00:07]}  Kg2 {[%clk 0:00:19]} 0-1


[Site "https://www.chess.com"]

[Event "Titled Tuesday Blitz January 10 Late 2023"]
[White "Zheng, Richard"]
[Black "Wang, Alexander J"]
[WhiteFideId "2624893"]
[BlackFideId "30955270"]
[WhiteElo "2121"]
[BlackElo "1815"]
[Result "1-0"]
[Round "01"]
[TimeControl "180+2"]
[Date "2023.01.10"]
[WhiteClock "0:01:09"]
[BlackClock "0:00:16"]

1. d4 {[%clk 0:00:00]}  d5 {[%clk 0:00:00]} 2. c4 {[%clk 0:02:56]}  e6 {[%clk 0:02:57]} 3. Nc3 {[%clk 0:02:56]}  c5 {[%clk 0:02:56]} 4. cxd5 {[%clk 0:02:56]}  exd5 {[%clk 0:02:56]} 5. Nf3 {[%clk 0:02:53]}  Nc6 {[%clk 0:02:57]} 6. e3 {[%clk 0:02:50]}  Nf6 {[%clk 0:02:56]} 7. Bd3 {[%clk 0:02:44]}  c4 {[%clk 0:02:55]} 8. Bb1 {[%clk 0:02:40]}  Bg4 {[%clk 0:02:48]} 9. h3 {[%clk 0:02:38]}  Be6 {[%clk 0:02:25]} 10. O-O {[%clk 0:02:37]}  a6 {[%clk 0:02:24]} 11. a4 {[%clk 0:02:35]}  Rb8 {[%clk 0:02:23]} 12. Ne5 {[%clk 0:02:35]}  Qc7 {[%clk 0:02:21]} 13. Nxc6 {[%clk 0:02:27]}  bxc6 {[%clk 0:02:17]} 14. e4 {[%clk 0:02:25]}  Be7 {[%clk 0:02:06]} 15. e5 {[%clk 0:02:23]}  Nd7 {[%clk 0:02:03]} 16. f4 {[%clk 0:02:21]}  f5 {[%clk 0:02:02]} 17. g4 {[%clk 0:02:22]}  g6 {[%clk 0:01:49]} 18. gxf5 {[%clk 0:01:55]}  gxf5 {[%clk 0:01:39]} 19. Qh5+ {[%clk 0:01:55]}  Bf7 {[%clk 0:01:38]} 20. Qxf5 {[%clk 0:01:55]}  Nf8 {[%clk 0:01:22]} 21. Qc2 {[%clk 0:01:55]}  Ne6 {[%clk 0:01:18]} 22. Be3 {[%clk 0:01:49]}  Rg8+ {[%clk 0:01:15]} 23. Kh2 {[%clk 0:01:43]}  h5 {[%clk 0:01:11]} 24. f5 {[%clk 0:01:40]}  Ng5 {[%clk 0:01:05]} 25. f6 {[%clk 0:01:39]}  Bd8 {[%clk 0:01:04]} 26. Qd2 {[%clk 0:01:37]}  Ne6 {[%clk 0:00:55]} 27. Bh7 {[%clk 0:01:17]}  Rh8 {[%clk 0:00:38]} 28. Bf5 {[%clk 0:01:13]}  Bxf6 {[%clk 0:00:30]} 29. Bxe6 {[%clk 0:01:11]}  Bxe5+ {[%clk 0:00:17]} 30. dxe5 {[%clk 0:01:07]}  Qxe5+ {[%clk 0:00:15]} 31. Bf4 {[%clk 0:01:08]}  Qxe6 {[%clk 0:00:16]} 32. Bxb8 {[%clk 0:01:09]} 1-0


[Site "https://www.chess.com"]